fUSD/lending_fUSD_20260612
["ID","MTS","AMOUNT","RATE_DAILY","PERIOD"]
[424918378,1781271066000,-12500.0,0.0003025,2]
[424918377,1781271066000,-22500.0,0.0003025,2]
[424918376,1781271066000,-25000.0,0.0003025,2]
[424918380,1781271066000,-22500.0,0.0003025,2]
[424918382,1781271066000,-701.04372134,0.00030256,7]
[424918407,1781271066000,-807.0,0.0003028,30]
[424918457,1781271066000,-695.16879547,0.00030341,7]
[424918411,1781271066000,-151.0,0.00030289,2]
[424918436,1781271066000,-579.31493865,0.00030341,7]
[424918441,1781271066000,-715.58003433,0.00030341,7]
[424918437,1781271066000,-178.50584563,0.00030341,2]
[424918440,1781271066000,-415.78113373,0.00030341,7]
[424918438,1781271066000,-171.16222366,0.00030341,7]
[424918439,1781271066000,-508.00274144,0.00030341,7]
[424918442,1781271066000,-600.28662367,0.00030341,7]
[424918443,1781271066000,-426.31114151,0.00030341,7]
[424918447,1781271066000,-169.23327099,0.00030341,7]
[424918448,1781271066000,-714.66260759,0.00030341,5]
[424918449,1781271066000,-456.79295356,0.00030341,2]
[424918451,1781271066000,-416.80105908,0.00030341,7]
[424918450,1781271066000,-492.98299668,0.00030341,7]
[424918456,1781271066000,-595.7270479,0.00030341,7]
[424918453,1781271066000,-1105.44931147,0.00030341,7]
[424918454,1781271066000,-160.87656482,0.00030341,7]
[424918455,1781271066000,-753.41803217,0.00030341,7]
[424918452,1781271066000,-168.66142178,0.00030341,7]
[424918459,1781271066000,-165.44373856,0.00030356,7]
[424918460,1781271066000,-268.73636807,0.00030356,7]
[424918462,1781271066000,-173.5723746,0.00030356,7]
[424918461,1781271066000,-230.03790897,0.00030356,7]
[424918409,1781271066000,-187.0,0.0003028,30]
[424918446,1781271066000,-419.47510583,0.00030341,7]
[424918445,1781271066000,-401.60064667,0.00030341,7]
[424918458,1781271066000,-551.6348335,0.00030341,7]
[424918434,1781271066000,-412.44932387,0.00030341,7]
[424918412,1781271066000,-573.27,0.00030298,2]
[424918444,1781271066000,-762.42634003,0.00030341,7]
[424918413,1781271066000,-573.27,0.00030298,2]
[424918418,1781271066000,-598.44,0.00030298,2]
[424918416,1781271066000,-573.27,0.00030298,2]
[424918414,1781271066000,-573.27,0.00030298,2]
[424918415,1781271066000,-573.27,0.00030298,2]
[424918417,1781271066000,-185.11,0.00030298,2]
[424918420,1781271066000,-232.54006698,0.00030329,7]
[424918421,1781271066000,-316.04392134,0.00030329,7]
[424918419,1781271066000,-573.27,0.00030308,2]
[424918424,1781271066000,-160.2407082,0.00030339,7]
[424918422,1781271066000,-165.90427298,0.00030329,7]
[424918425,1781271066000,-168.28799091,0.00030339,7]
[424918431,1781271066000,-213.69081403,0.00030339,7]
[424918427,1781271066000,-166.70145051,0.00030339,7]
[424918432,1781271066000,-1217.4004345,0.00030341,7]
[424918423,1781271066000,-10000.0,0.00030333,2]
[424918426,1781271066000,-164.51726787,0.00030339,7]
[424918433,1781271066000,-170.50897111,0.00030341,7]
[424918430,1781271066000,-165.61875291,0.00030339,7]
[424918429,1781271066000,-343.78291098,0.00030339,7]
[424918428,1781271066000,-160.74161205,0.00030339,7]
[424918435,1781271066000,-466.89649365,0.00030341,7]
[424918501,1781271067000,-826.79233202,0.00030782,7]
[424918504,1781271067000,-360.74839326,0.00030791,2]
[424918503,1781271067000,-787.50390838,0.00030783,7]
[424918497,1781271067000,-822.4163858,0.00030782,7]
[424918499,1781271067000,-787.32454965,0.00030782,7]
[424918495,1781271067000,-942.35673436,0.00030782,7]
[424918494,1781271067000,-7346.0,0.0003077,10]
[424918498,1781271067000,-780.25152401,0.00030782,7]
[424918500,1781271067000,-938.96233999,0.00030782,7]
[424918493,1781271067000,-781.6731322,0.00030768,7]
[424918496,1781271067000,-956.13081754,0.00030782,7]
[424918502,1781271067000,-894.83142137,0.00030783,7]
[424918513,1781271067000,-250.0,0.00030798,2]
[424918515,1781271067000,-250.0,0.00030798,2]
[424918516,1781271067000,-250.0,0.00030798,2]
[424918507,1781271067000,-799.48026191,0.00030797,7]
[424918509,1781271067000,-775.71821906,0.00030797,7]
[424918506,1781271067000,-876.03895618,0.00030797,7]
[424918508,1781271067000,-765.66125274,0.00030797,7]
[424918510,1781271067000,-942.63150246,0.00030797,7]
[424918514,1781271067000,-250.0,0.00030798,2]
[424918511,1781271067000,-869.34572996,0.00030797,7]
[424918512,1781271067000,-889.45627602,0.00030797,7]
[424918519,1781271067000,-250.0,0.00030798,2]
[424918490,1781271067000,-25000.0,0.0003075,2]
[424918505,1781271067000,-240.3550645,0.00030791,2]
[424918491,1781271067000,-22500.0,0.0003075,2]
[424918468,1781271067000,-151.0,0.00030372,7]
[424918488,1781271067000,-22500.0,0.00030625,2]
[424918517,1781271067000,-250.0,0.00030798,2]
[424918463,1781271067000,-169.46065684,0.00030356,7]
[424918465,1781271067000,-166.89114415,0.00030356,7]
[424918466,1781271067000,-162.35773978,0.00030356,7]
[424918470,1781271067000,-12500.0,0.00030375,2]
[424918464,1781271067000,-341.69386999,0.00030356,7]
[424918467,1781271067000,-163.78566837,0.00030356,7]
[424918469,1781271067000,-22500.0,0.00030375,2]
[424918480,1781271067000,-496.53598069,0.00030506,120]
[424918473,1781271067000,-250.0,0.00030467,2]
[424918477,1781271067000,-25000.0,0.000305,2]
[424918474,1781271067000,-250.0,0.00030467,2]
[424918489,1781271067000,-502.78,0.00030635,30]
[424918479,1781271067000,-22500.0,0.000305,2]
[424918472,1781271067000,-505.0,0.000304,13]
[424918475,1781271067000,-281.47982393,0.00030467,2]
[424918471,1781271067000,-22500.0,0.00030375,2]
[424918481,1781271067000,-3750.0,0.00030507,120]
[424918478,1781271067000,-12500.0,0.000305,2]
[424918492,1781271067000,-789.73915702,0.00030768,7]
[424918482,1781271067000,-3750.0,0.00030507,120]
[424918487,1781271067000,-2523.58,0.00030589,120]
[424918486,1781271067000,-15910.32507752,0.00030571,7]
[424918483,1781271067000,-3678.0,0.00030507,120]
[424918484,1781271067000,-320.0,0.00030562,16]
[424918485,1781271067000,-35129.53225196,0.00030571,7]
[424918476,1781271067000,-1500.0,0.000305,7]
[424918528,1781271067000,-866.94695459,0.00030853,7]
[424918566,1781271067000,-502.78,0.00031133,30]
[424918520,1781271067000,-250.0,0.00030798,2]
[424918553,1781271067000,-25000.0,0.00031,2]
[424918552,1781271067000,-500.63270612,0.00031,120]
[424918563,1781271067000,-250.0,0.00031129,2]
[424918556,1781271067000,-10000.0,0.00031,120]
[424918554,1781271067000,-3962.19,0.00031,2]
[424918555,1781271067000,-389.68,0.00031,7]
[424918557,1781271067000,-160.0,0.00031,120]
[424918559,1781271067000,-250.0,0.00031129,2]
[424918558,1781271067000,-23589.6,0.00031,28]
[424918561,1781271067000,-250.0,0.00031129,2]
[424918562,1781271067000,-250.0,0.00031129,2]
[424918573,1781271067000,-568.0,0.0003128,30]
[424918550,1781271067000,-20123.56001565,0.00031,14]
[424918565,1781271067000,-250.0,0.00031129,2]
[424918575,1781271067000,-187.0,0.0003128,30]
[424918578,1781271067000,-243.0,0.0003128,30]
[424918567,1781271067000,-189.0,0.00031234,3]
[424918569,1781271067000,-25000.0,0.0003125,2]
[424918564,1781271067000,-250.0,0.00031129,2]
[424918571,1781271067000,-252.0,0.0003128,30]
[424918568,1781271067000,-150.312435,0.00031244,2]
[424918570,1781271067000,-376.0,0.0003128,30]
[424918572,1781271067000,-303.0,0.0003128,30]
[424918576,1781271067000,-2328.0,0.0003128,30]
[424918577,1781271067000,-383.0,0.0003128,30]
[424918527,1781271067000,-150.0,0.00030841,2]
[424918574,1781271067000,-978.0,0.0003128,30]
[424918541,1781271067000,-893.32825949,0.00030919,5]
[424918560,1781271067000,-250.0,0.00031129,2]
[424918544,1781271067000,-350.0,0.00030922,4]
[424918523,1781271067000,-769.57771736,0.00030833,7]
[424918551,1781271067000,-1500.0,0.00031,7]
[424918525,1781271067000,-202.0,0.0003084,30]
[424918522,1781271067000,-998.43246627,0.00030833,7]
[424918524,1781271067000,-1734.26,0.00030838,2]
[424918529,1781271067000,-774.23722731,0.00030853,7]
[424918518,1781271067000,-250.0,0.00030798,2]
[424918526,1781271067000,-1640.56294027,0.0003084,2]
[424918531,1781271067000,-791.11402765,0.00030853,7]
[424918530,1781271067000,-849.79334829,0.00030853,7]
[424918533,1781271067000,-852.21892246,0.00030853,7]
[424918532,1781271067000,-814.38803085,0.00030853,7]
[424918534,1781271067000,-968.29645071,0.00030853,7]
[424918521,1781271067000,-252.68,0.000308,10]
[424918537,1781271067000,-521.2,0.000309,7]
[424918547,1781271067000,-13000.0,0.00031,2]
[424918540,1781271067000,-750.35827959,0.00030919,7]
[424918549,1781271067000,-2500.0,0.00031,2]
[424918545,1781271067000,-320.0,0.00030975,18]
[424918548,1781271067000,-40020.06271336,0.00031,2]
[424918546,1781271067000,-3001.62320297,0.00031,120]
[424918543,1781271067000,-868.96099433,0.00030919,7]
[424918538,1781271067000,-100000.0,0.000309,2]
[424918535,1781271067000,-994.51900431,0.00030853,7]
[424918539,1781271067000,-894.47504291,0.00030919,7]
[424918536,1781271067000,-22500.0,0.00030875,2]
[424918542,1781271067000,-1381.81163934,0.00030919,7]
[424918621,1781271068000,-200.0,0.00031384,2]
[424918618,1781271068000,-200.0,0.00031384,2]
[424918623,1781271068000,-200.0,0.00031384,2]
[424918613,1781271068000,-200.0,0.00031384,2]
[424918616,1781271068000,-200.0,0.00031384,2]
[424918622,1781271068000,-200.0,0.00031384,2]
[424918614,1781271068000,-200.0,0.00031384,2]
[424918615,1781271068000,-200.0,0.00031384,2]
[424918612,1781271068000,-200.0,0.00031384,2]
[424918606,1781271068000,-200.0,0.00031384,2]
[424918620,1781271068000,-200.0,0.00031384,2]
[424918603,1781271068000,-200.0,0.00031384,2]
[424918617,1781271068000,-200.0,0.00031384,2]
[424918633,1781271068000,-200.0,0.00031384,2]
[424918625,1781271068000,-200.0,0.00031384,2]
[424918635,1781271068000,-200.0,0.00031384,2]
[424918624,1781271068000,-200.0,0.00031384,2]
[424918628,1781271068000,-500.0,0.00031384,2]
[424918627,1781271068000,-500.0,0.00031384,2]
[424918626,1781271068000,-200.0,0.00031384,2]
[424918632,1781271068000,-200.0,0.00031384,2]
[424918630,1781271068000,-200.0,0.00031384,2]
[424918634,1781271068000,-200.0,0.00031384,2]
[424918631,1781271068000,-200.0,0.00031384,2]
[424918629,1781271068000,-200.0,0.00031384,2]
[424918604,1781271068000,-200.0,0.00031384,2]
[424918619,1781271068000,-200.0,0.00031384,2]
[424918607,1781271068000,-200.0,0.00031384,2]
[424918586,1781271068000,-200.0,0.00031384,2]
[424918608,1781271068000,-200.0,0.00031384,2]
[424918587,1781271068000,-200.0,0.00031384,2]
[424918636,1781271068000,-200.0,0.00031384,2]
[424918580,1781271068000,-187.0,0.0003128,30]
[424918579,1781271068000,-807.0,0.0003128,30]
[424918581,1781271068000,-827.0,0.0003128,30]
[424918582,1781271068000,-240.3550645,0.00031339,2]
[424918585,1781271068000,-320.0,0.00031377,19]
[424918583,1781271068000,-2442.73462334,0.00031342,7]
[424918584,1781271068000,-2523.58,0.00031356,120]
[424918588,1781271068000,-200.0,0.00031384,2]
[424918592,1781271068000,-200.0,0.00031384,2]
[424918590,1781271068000,-200.0,0.00031384,2]
[424918593,1781271068000,-200.0,0.00031384,2]
[424918591,1781271068000,-200.0,0.00031384,2]
[424918594,1781271068000,-200.0,0.00031384,2]
[424918595,1781271068000,-200.0,0.00031384,2]
[424918589,1781271068000,-200.0,0.00031384,2]
[424918598,1781271068000,-200.0,0.00031384,2]
[424918596,1781271068000,-200.0,0.00031384,2]
[424918597,1781271068000,-200.0,0.00031384,2]
[424918599,1781271068000,-200.0,0.00031384,2]
[424918610,1781271068000,-200.0,0.00031384,2]
[424918600,1781271068000,-200.0,0.00031384,2]
[424918611,1781271068000,-200.0,0.00031384,2]
[424918602,1781271068000,-200.0,0.00031384,2]
[424918609,1781271068000,-200.0,0.00031384,2]
[424918601,1781271068000,-200.0,0.00031384,2]
[424918605,1781271068000,-200.0,0.00031384,2]
[424918640,1781271068000,-200.0,0.00031384,2]
[424918646,1781271068000,-500.0,0.00031384,2]
[424918637,1781271068000,-200.0,0.00031384,2]
[424918673,1781271068000,-1000.0,0.00031544,60]
[424918684,1781271068000,-150.0,0.0003161,2]
[424918683,1781271068000,-150.0,0.0003161,2]
[424918672,1781271068000,-1000.0,0.00031544,60]
[424918675,1781271068000,-350.0,0.00031544,60]
[424918674,1781271068000,-984.0,0.00031544,60]
[424918681,1781271068000,-200.0,0.00031565,2]
[424918677,1781271068000,-276.0,0.00031544,60]
[424918678,1781271068000,-200.0,0.00031564,2]
[424918680,1781271068000,-200.0,0.00031564,2]
[424918679,1781271068000,-200.0,0.00031564,2]
[424918676,1781271068000,-350.0,0.00031544,60]
[424918682,1781271068000,-150.0,0.0003161,2]
[424918685,1781271068000,-150.0,0.0003161,2]
[424918687,1781271068000,-150.74840494,0.0003161,2]
[424918690,1781271068000,-199.39156358,0.00031644,40]
[424918688,1781271068000,-488.75829625,0.00031631,30]
[424918647,1781271068000,-500.0,0.00031384,2]
[424918691,1781271068000,-150.0,0.00031644,2]
[424918692,1781271068000,-936.30182881,0.00031646,7]
[424918686,1781271068000,-150.0,0.0003161,2]
[424918693,1781271068000,-944.78945957,0.00031646,7]
[424918695,1781271068000,-1073.79770564,0.00031647,7]
[424918696,1781271068000,-1051.24674741,0.00031662,7]
[424918694,1781271068000,-992.15079843,0.00031646,7]
[424918697,1781271068000,-959.3763143,0.00031662,7]
[424918698,1781271068000,-918.79350329,0.00031662,7]
[424918669,1781271068000,-201.17376517,0.000315,2]
[424918668,1781271068000,-1500.0,0.000315,7]
[424918689,1781271068000,-938.00775864,0.00031632,7]
[424918664,1781271068000,-553.0,0.00031466,120]
[424918665,1781271068000,-4215.58164842,0.00031477,7]
[424918642,1781271068000,-200.0,0.00031384,2]
[424918638,1781271068000,-172.0,0.00031384,2]
[424918643,1781271068000,-167.0,0.00031384,2]
[424918639,1781271068000,-200.0,0.00031384,2]
[424918641,1781271068000,-200.0,0.00031384,2]
[424918645,1781271068000,-500.0,0.00031384,2]
[424918649,1781271068000,-496.53598069,0.00031394,120]
[424918648,1781271068000,-556.0,0.00031384,2]
[424918651,1781271068000,-505.0,0.00031433,14]
[424918650,1781271068000,-500.0,0.000314,120]
[424918659,1781271068000,-2000.0,0.00031466,120]
[424918652,1781271068000,-150.0,0.00031452,22]
[424918644,1781271068000,-500.0,0.00031384,2]
[424918653,1781271068000,-250.0,0.0003146,2]
[424918671,1781271068000,-151.91799802,0.00031503,2]
[424918655,1781271068000,-250.0,0.0003146,2]
[424918663,1781271068000,-700.0,0.00031466,120]
[424918670,1781271068000,-150.0,0.000315,2]
[424918666,1781271068000,-9618.58114599,0.00031477,7]
[424918667,1781271068000,-25000.0,0.000315,2]
[424918661,1781271068000,-1969.0,0.00031466,120]
[424918660,1781271068000,-2000.0,0.00031466,120]
[424918657,1781271068000,-250.0,0.0003146,2]
[424918654,1781271068000,-250.0,0.0003146,2]
[424918656,1781271068000,-250.0,0.0003146,2]
[424918658,1781271068000,-250.0,0.0003146,2]
[424918662,1781271068000,-700.0,0.00031466,120]
[424918721,1781271069000,-200.0,0.00031839,2]
[424918720,1781271069000,-250.0,0.00031791,2]
[424918730,1781271069000,-151.0,0.00031941,2]
[424918729,1781271069000,-1267.42,0.00031937,2]
[424918722,1781271069000,-200.0,0.00031847,2]
[424918724,1781271069000,-240.3550645,0.00031887,2]
[424918723,1781271069000,-572.41,0.00031848,2]
[424918725,1781271069000,-243.79,0.00031926,2]
[424918736,1781271069000,-304.04424387,0.00032,120]
[424918726,1781271069000,-345.53104898,0.00031931,2]
[424918728,1781271069000,-1851.62,0.00031937,2]
[424918732,1781271069000,-25000.0,0.00032,2]
[424918731,1781271069000,-384.73,0.00031952,2]
[424918733,1781271069000,-164.58473457,0.00032,120]
[424918734,1781271069000,-244.31639223,0.00032,120]
[424918735,1781271069000,-376.40572541,0.00032,120]
[424918718,1781271069000,-250.0,0.00031791,2]
[424918727,1781271069000,-1000.0,0.00031937,2]
[424918713,1781271069000,-900.42993551,0.00031787,7]
[424918703,1781271069000,-977.26563702,0.00031719,7]
[424918715,1781271069000,-1042.7531932,0.00031787,7]
[424918740,1781271069000,-192.57928027,0.00032,120]
[424918700,1781271069000,-1131.15780295,0.00031662,7]
[424918705,1781271069000,-25000.0,0.0003175,2]
[424918699,1781271069000,-930.86186288,0.00031662,7]
[424918704,1781271069000,-159.52380952,0.00031728,2]
[424918702,1781271069000,-949.33683318,0.00031719,7]
[424918701,1781271069000,-923.49326083,0.00031698,7]
[424918706,1781271069000,-200.0,0.00031752,2]
[424918707,1781271069000,-200.0,0.00031757,2]
[424918708,1781271069000,-200.0,0.0003176,2]
[424918709,1781271069000,-200.0,0.00031765,2]
[424918710,1781271069000,-320.0,0.00031768,21]
[424918716,1781271069000,-250.0,0.00031791,2]
[424918711,1781271069000,-500.0,0.00031774,60]
[424918717,1781271069000,-250.0,0.00031791,2]
[424918712,1781271069000,-1073.3700515,0.00031787,7]
[424918719,1781271069000,-250.0,0.00031791,2]
[424918714,1781271069000,-1658.17396721,0.00031787,7]
[424918739,1781271069000,-172.5727479,0.00032,120]
[424918745,1781271069000,-188.6840366,0.00032,120]
[424918737,1781271069000,-305.81413761,0.00032,120]
[424918762,1781271069000,-10000.0,0.00032,120]
[424918755,1781271069000,-20000.0,0.00032,120]
[424918761,1781271069000,-20000.0,0.00032,120]
[424918765,1781271069000,-5000.0,0.00032014,2]
[424918766,1781271069000,-5000.0,0.00032014,2]
[424918767,1781271069000,-5000.0,0.00032014,2]
[424918769,1781271069000,-350.0,0.00032103,7]
[424918768,1781271069000,-5000.0,0.00032014,2]
[424918771,1781271069000,-188847.93025222,0.00032122,2]
[424918772,1781271069000,-250.0,0.00032123,2]
[424918775,1781271069000,-250.0,0.00032123,2]
[424918773,1781271069000,-250.0,0.00032123,2]
[424918776,1781271069000,-502.78,0.0003213,30]
[424918774,1781271069000,-250.0,0.00032123,2]
[424918777,1781271069000,-1000.0,0.00032135,7]
[424918778,1781271069000,-320.0,0.00032147,23]
[424918741,1781271069000,-651.07672488,0.00032,120]
[424918758,1781271069000,-10000.0,0.00032,30]
[424918759,1781271069000,-14324.49420543,0.00032,30]
[424918770,1781271069000,-7346.0,0.0003212,10]
[424918760,1781271069000,-1000.0,0.00032,120]
[424918763,1781271069000,-700.0,0.00032,2]
[424918738,1781271069000,-162.76918121,0.00032,120]
[424918743,1781271069000,-189.39016739,0.00032,120]
[424918753,1781271069000,-10000.0,0.00032,2]
[424918742,1781271069000,-188.398215,0.00032,120]
[424918744,1781271069000,-189.9214738,0.00032,120]
[424918779,1781271069000,-1245.0,0.00032153,2]
[424918749,1781271069000,-177.39768194,0.00032,120]
[424918747,1781271069000,-185.65194979,0.00032,120]
[424918746,1781271069000,-162.88044551,0.00032,120]
[424918752,1781271069000,-174.6254819,0.00032,120]
[424918756,1781271069000,-11416.14644259,0.00032,30]
[424918757,1781271069000,-1500.0,0.00032,7]
[424918754,1781271069000,-10000.0,0.00032,2]
[424918764,1781271069000,-5000.0,0.00032014,2]
[424918748,1781271069000,-161.2155328,0.00032,120]
[424918750,1781271069000,-192.78067843,0.00032,120]
[424918751,1781271069000,-181.3074543,0.00032,120]
[424918811,1781271070000,-150.0,0.00032345,2]
[424918801,1781271070000,-827.0,0.0003228,30]
[424918808,1781271070000,-150.0,0.00032345,2]
[424918806,1781271070000,-150.0,0.00032345,2]
[424918803,1781271070000,-500.0,0.00032329,2]
[424918800,1781271070000,-187.0,0.0003228,30]
[424918809,1781271070000,-150.0,0.00032345,2]
[424918812,1781271070000,-150.0,0.00032383,2]
[424918819,1781271070000,-250.0,0.00032454,2]
[424918824,1781271070000,-320.0,0.00032516,24]
[424918817,1781271070000,-151.0,0.00032432,2]
[424918816,1781271070000,-644.79446245,0.00032432,2]
[424918814,1781271070000,-496.53598069,0.00032423,120]
[424918815,1781271070000,-1000.0,0.00032423,7]
[424918813,1781271070000,-164.64,0.000324,7]
[424918821,1781271070000,-250.0,0.00032454,2]
[424918822,1781271070000,-505.0,0.00032467,15]
[424918820,1781271070000,-250.0,0.00032454,2]
[424918804,1781271070000,-2523.58,0.00032342,120]
[424918818,1781271070000,-240.35506454,0.00032435,2]
[424918802,1781271070000,-912.19982274,0.000323,2]
[424918783,1781271070000,-151.0,0.00032229,7]
[424918805,1781271070000,-150.0,0.00032345,2]
[424918781,1781271070000,-1088.1,0.0003221,5]
[424918780,1781271070000,-350.0,0.00032196,6]
[424918823,1781271070000,-1500.0,0.000325,7]
[424918786,1781271070000,-89799.66313349,0.00032232,90]
[424918785,1781271070000,-100000.0,0.00032232,60]
[424918784,1781271070000,-100000.0,0.00032232,120]
[424918782,1781271070000,-8971.98013509,0.00032212,5]
[424918787,1781271070000,-100000.0,0.00032232,30]
[424918788,1781271070000,-6024.56,0.0003225,2]
[424918807,1781271070000,-150.0,0.00032345,2]
[424918798,1781271070000,-243.0,0.0003228,30]
[424918789,1781271070000,-1000.0,0.00032279,7]
[424918793,1781271070000,-568.0,0.0003228,30]
[424918791,1781271070000,-252.0,0.0003228,30]
[424918794,1781271070000,-978.0,0.0003228,30]
[424918792,1781271070000,-303.0,0.0003228,30]
[424918795,1781271070000,-187.0,0.0003228,30]
[424918796,1781271070000,-2328.0,0.0003228,30]
[424918797,1781271070000,-383.0,0.0003228,30]
[424918799,1781271070000,-807.0,0.0003228,30]
[424918790,1781271070000,-376.0,0.0003228,30]
[424918829,1781271070000,-503.02,0.00032725,14]
[424918810,1781271070000,-150.0,0.00032345,2]
[424918827,1781271070000,-301.92,0.00032709,5]
[424918853,1781271070000,-500.0,0.00032876,2]
[424918858,1781271070000,-500.0,0.00032876,2]
[424918859,1781271070000,-583.65600628,0.00032876,2]
[424918856,1781271070000,-500.0,0.00032876,2]
[424918855,1781271070000,-443.67227168,0.00032876,2]
[424918857,1781271070000,-500.0,0.00032876,2]
[424918852,1781271070000,-492.52277909,0.00032876,2]
[424918854,1781271070000,-500.0,0.00032876,2]
[424918860,1781271070000,-500.0,0.00032876,2]
[424918851,1781271070000,-380.3508622,0.00032876,2]
[424918861,1781271070000,-500.0,0.00032876,2]
[424918866,1781271070000,-151.0,0.00032877,7]
[424918870,1781271070000,-274.760788,0.00032877,7]
[424918864,1781271070000,-450.0,0.00032876,2]
[424918865,1781271070000,-153.856381,0.00032877,7]
[424918868,1781271070000,-286.967806,0.00032877,7]
[424918869,1781271070000,-209.432558,0.00032877,7]
[424918867,1781271070000,-154.774495,0.00032877,7]
[424918871,1781271070000,-151.0,0.00032877,7]
[424918826,1781271070000,-488.75829625,0.00032628,30]
[424918863,1781271070000,-500.0,0.00032876,2]
[424918848,1781271070000,-423.57374037,0.00032876,2]
[424918862,1781271070000,-500.0,0.00032876,2]
[424918847,1781271070000,-472.9653089,0.00032876,2]
[424918849,1781271070000,-253.49527737,0.00032876,2]
[424918828,1781271070000,-1000.0,0.00032711,7]
[424918831,1781271070000,-644.07,0.00032763,2]
[424918833,1781271070000,-1734.26,0.00032766,2]
[424918832,1781271070000,-482.24,0.00032763,2]
[424918830,1781271070000,-395.58,0.00032751,2]
[424918834,1781271070000,-1003.04672581,0.00032774,2]
[424918839,1781271070000,-343.70185673,0.000328,7]
[424918838,1781271070000,-4929.57776316,0.000328,2]
[424918835,1781271070000,-303.43,0.00032776,2]
[424918836,1781271070000,-250.0,0.00032785,2]
[424918840,1781271070000,-164.64,0.000328,7]
[424918841,1781271070000,-35129.53225196,0.00032819,7]
[424918843,1781271070000,-1000.0,0.00032856,7]
[424918842,1781271070000,-15910.32507752,0.00032819,7]
[424918845,1781271070000,-151.91799802,0.00032872,2]
[424918844,1781271070000,-202.0,0.0003286,30]
[424918846,1781271070000,-320.0,0.00032875,26]
[424918850,1781271070000,-423.6963575,0.00032876,2]
[424918837,1781271070000,-250.0,0.00032785,2]
[424918825,1781271070000,-1000.0,0.00032567,7]
[424918912,1781271071000,-151.0,0.00032877,7]
[424918907,1781271071000,-178.366787,0.00032877,7]
[424918905,1781271071000,-151.0,0.00032877,7]
[424918908,1781271071000,-151.0,0.00032877,7]
[424918909,1781271071000,-151.0,0.00032877,7]
[424918903,1781271071000,-244.274284,0.00032877,7]
[424918914,1781271071000,-151.0,0.00032877,7]
[424918902,1781271071000,-151.0,0.00032877,7]
[424918913,1781271071000,-151.0,0.00032877,7]
[424918900,1781271071000,-151.0,0.00032877,7]
[424918904,1781271071000,-151.0,0.00032877,7]
[424918906,1781271071000,-204.267869,0.00032877,7]
[424918926,1781271071000,-260.420536,0.00032877,7]
[424918911,1781271071000,-151.0,0.00032877,7]
[424918915,1781271071000,-151.0,0.00032877,7]
[424918917,1781271071000,-151.0,0.00032877,7]
[424918918,1781271071000,-197.392951,0.00032877,7]
[424918919,1781271071000,-151.0,0.00032877,7]
[424918922,1781271071000,-260.420536,0.00032877,7]
[424918916,1781271071000,-151.0,0.00032877,7]
[424918920,1781271071000,-151.0,0.00032877,7]
[424918923,1781271071000,-260.420536,0.00032877,7]
[424918925,1781271071000,-260.420536,0.00032877,7]
[424918924,1781271071000,-260.420536,0.00032877,7]
[424918898,1781271071000,-151.0,0.00032877,7]
[424918910,1781271071000,-151.0,0.00032877,7]
[424918897,1781271071000,-320.067124,0.00032877,7]
[424918881,1781271071000,-320.067124,0.00032877,7]
[424918901,1781271071000,-151.0,0.00032877,7]
[424918921,1781271071000,-257.25612,0.00032877,7]
[424918874,1781271071000,-151.0,0.00032877,7]
[424918872,1781271071000,-166.841507,0.00032877,7]